Cogmind - Beta 16.1 @@@ ROGUE MODE // 2026.03.03 @ 05:43:43 Player: FL-IST Result: Destroyed by D-63 Destroyer with Heavy Rocket Launcher Performance ------------- Evolutions (7) 3500 Regions Visited (19) 3800 Robots Destroyed (248) 1240 Value Destroyed (6366) 6366 Prototype IDs (37) 740 Alien Tech Used (0) 0 Bonus (-58) -58 TOTAL SCORE: 15588 Bonus ------- High Alert Combat Kills 95 Follower Combat Kills 866 Hunted by Unchained 500 Network Hubs Disabled 600 Aligned with FarCom 300 Built Enhanced Grunts 300 A7 Reached Mainframe 300 Friendly Fire -3019 Cogmind --------- Core Integrity 0/1300 Matter 0/300 Energy 100/100 System Corruption 37% Temperature Cool (0) Movement Core (50) Location -3/Armory Parts ------- > --- POWER (2) -------- (None) > --- PROPULSION (8) --- (None) > --- UTILITY (9) ------ (None) > --- WEAPON (2) ------- (None) > --- INVENTORY (5) ---- Graphene Brace Enhanced Nova Cannon Power Sword Peak State ------------ > --- POWER ------------ Light Antimatter Reactor Quantum Reactor > --- PROPULSION ------- Xenon Bombardment Thruster Cooled VTOL Module Cooled VTOL Module Cooled VTOL Module Impulse Thruster Q-thruster Impulse Thruster Array > --- UTILITY ---------- Advanced Cooling System Medium Storage Unit Advanced Transmission Jammer Jamming Amplifier Centrium Medium Armor Plating Advanced Hacking Suite Advanced Hacking Suite Advanced System Shield Advanced System Restoration Module > --- WEAPON ----------- Hypervelocity Railgun Hypervelocity Railgun > --- INVENTORY -------- Improved Cloaking Device Graphene Brace Advanced Hacking Suite Trap Reconfigurator Cooled Particle Cannon Hypervelocity Railgun Hypervelocity Railgun Hypervelocity Railgun Hypervelocity Railgun Power Sword [Rating: 141] Favorites ----------- Power Heavy Ion Engine Engine Heavy Ion Engine Power Core Fission Core Reactor Quantum Reactor Propulsion Light Treads Treads Light Treads Hover Unit Improved Antigrav System Flight Unit Cooled VTOL Module Utility Seismic Detector Device Seismic Detector Storage High-capacity Storage Unit Processor Advanced Visual Processing Unit Hackware Hacking Suite Protection Hardened Light Armor Plating Weapon Assault Cannon Energy Gun Small Laser Energy Cannon Cooled Particle Cannon Ballistic Gun Improved Assault Rifle Ballistic Cannon Assault Cannon Launcher Rocket Launcher Special Weapon Plasma Cutter Slashing Weapon Katana Build | -11 -10 -10 -9 -9 -9 -8 -8 -8 -8 -8 -6 -6 -6 -6 -6 -5 -4 -3 -3 ------- Run | Yrd Mat Min Mat Min Exi Min Mat Sto Rec Scr Fac Ext Cet Arc Hub Fac Fac Res Arm Slots Evolved 14 | . . . 2 . . . 2 . . . 4 . . . . 2 2 2 . Power 1 | . . . . . . . . . . . . . . . . . . 1 . Propulsion 6 | . . . 1 . . . 1 . . . 2 . . . . . 1 1 . Utility 7 | . . . 1 . . . 1 . . . 2 . . . . 2 1 . . Weapon . | . . . . . . . . . . . . . . . . . . . . Parts Attached 165 | 8 7 5 26 1 3 2 12 20 6 . 21 3 3 1 2 11 6 3 25 Power 15 | 1 1 1 2 . . . . 2 1 . 1 1 . . 1 . 1 1 2 Engine 9 | 1 1 1 2 . . . . 2 1 . . 1 . . . . . . . Core 2 | . . . . . . . . . . . 1 . . . . . 1 . . Reactor 4 | . . . . . . . . . . . . . . . 1 . . 1 2 Propulsion 59 | 2 1 . 12 . 1 . 8 9 1 . 9 . . . 1 . 1 2 12 Treads 37 | 2 1 . 12 . 1 . 6 8 1 . . . . . . . . . 6 Leg . | . . . . . . . . . . . . . . . . . . . . Wheel . | . . . . . . . . . . . . . . . . . . . . Hover 3 | . . . . . . . 1 . . . . . . . . . . . 2 Flight 19 | . . . . . . . 1 1 . . 9 . . . 1 . 1 2 4 Utility 53 | 2 2 1 5 . 2 2 2 4 3 . 10 . 3 1 . 9 3 . 4 Device 11 | 1 . . 2 . 1 . 1 . . . 1 . . . . 2 1 . 2 Storage 5 | 1 2 . . . 1 . . . . . 1 . . . . . . . . Processor 4 | . . . . . . . . . . . 2 . . . . . 1 . 1 Hackware 21 | . . . . . . . . . 3 . 6 . 2 1 . 7 1 . 1 Protection 12 | . . 1 3 . . 2 1 4 . . . . 1 . . . . . . Artifact . | . . . . . . . . . . . . . . . . . . . . Weapon 38 | 3 3 3 7 1 . . 2 5 1 . 1 2 . . . 2 1 . 7 Energy Gun 6 | 2 1 2 1 . . . . . . . . . . . . . . . . Energy Cannon 3 | . . . . . . . . . . . . . . . . 1 1 . 1 Ballistic Gun 16 | 1 2 . 2 . . . 1 3 . . 1 . . . . . . . 6 Ballistic Cannon 5 | . . . 3 . . . 1 . . . . 1 . . . . . . . Launcher 5 | . . 1 1 1 . . . 1 . . . 1 . . . . . . . Special Weapon 1 | . . . . . . . . . 1 . . . . . . . . . . Impact Weapon . | . . . . . . . . . . . . . . . . . . . . Slashing Weapon 2 | . . . . . . . . 1 . . . . . . . 1 . . . Piercing Weapon . | . . . . . . . . . . . . . . . . . . . . Special Melee Weapon . | . . . . . . . . . . . . . . . . . . . . Unidentified Prototypes 10 | . . . 2 . . . 2 3 . . . . 1 . 1 1 . . . Corrupted Parts 3 | . . . . . . . . . . . 2 . . . 1 . . . . System Corruption 12 | . . . . . . . . . . . 4 . . . 8 . . . . Parts Lost 56 | . 3 . 6 1 . 1 3 12 . . 2 2 2 . 2 . . . 22 Power 8 | . 2 . 1 . . . . 2 . . 1 . . . . . . . 2 Propulsion 20 | . 1 . 2 1 . . 1 3 . . . 1 . . 1 . . . 10 Utility 18 | . . . 2 . . 1 1 5 . . 1 . 1 . . . . . 7 Weapon 10 | . . . 1 . . . 1 2 . . . 1 1 . 1 . . . 3 Highest Loss Streak 10 | . 1 . 5 1 . 1 2 6 . . 1 1 2 . 2 . . . 10 To Critical Strikes . | . . . . . . . . . . . . . . . . . . . . Average Backups 13 | 3 7 9 13 14 13 13 17 18 16 15 8 9 9 10 9 9 9 9 8 Power . | . . . . . . . . . . 1 . . . 1 1 1 1 . . Propulsion 4 | 1 2 2 5 6 5 5 5 5 6 6 1 1 1 1 . . . 1 . Utility 5 | . 2 4 4 4 5 5 7 8 6 7 4 7 7 7 7 6 6 7 5 Weapon 2 | . 2 3 4 3 3 3 4 4 2 1 1 1 1 1 1 1 2 . 2 Tool/Special . | . . . . . . . . . . . . . . . . . . . . Unused Backups 31 | . 2 . 4 1 . 1 8 2 2 . 2 . 1 . . 1 1 . 6 Power 4 | . . . . . . . 1 . . . 1 . . . . . . . 2 Propulsion 9 | . 2 . . . . . 4 1 . . . . . . . 1 . . 1 Utility 10 | . . . 2 . . 1 3 . . . . . 1 . . . 1 . 2 Weapon 7 | . . . 2 1 . . . 1 1 . 1 . . . . . . . 1 Tool/Special 1 | . . . . . . . . . 1 . . . . . . . . . . Average Slot Usage (%) 91 | . 87 97 97 93 94 100 93 86 87 100 91 97 93 93 91 87 93 89 64 Engine 7 | . 2 11 9 11 11 11 9 8 9 9 1 1 6 6 6 4 . . . Treads 24 | . 28 28 32 27 28 33 35 31 36 36 . . . . . . . . 2 Flight 8 | . . . . . . . . . . . 39 40 40 40 40 35 35 35 20 Device 6 | . 14 . 10 11 11 11 9 1 . . . . . . . 1 8 9 7 Storage 9 | . 14 14 11 11 11 11 9 9 9 9 6 6 6 6 6 5 5 4 3 Processor 1 | . . . . . . . . . . . 5 6 6 6 6 5 5 4 1 Hackware 7 | . . . . . . . . . 14 27 22 26 25 26 26 29 26 23 14 Protection 7 | . . 13 10 11 11 11 12 18 . . . . . . . . . . 1 Energy Gun 2 | . 14 13 6 . . . . . . . . . . . . . . . . Ballistic Gun 5 | . 14 14 3 . . . . 15 13 . . . . . . . . . 3 Ballistic Cannon 7 | . . . 12 21 22 20 17 2 . . . . . . . . . . . Slashing Weapon 1 | . . . . . . . . . 2 9 6 6 6 6 5 1 5 4 1 Peak Build Rating 141 | 7 7 9 19 20 25 21 33 29 36 34 62 64 64 66 67 81 107 119 141 Average Rating 31 | 5 6 8 15 19 19 19 25 24 31 34 52 58 60 64 65 73 98 109 94 On Entrance 41 | . 7 7 9 19 19 20 20 23 28 34 34 58 62 64 66 66 81 102 119 Avg Prop Armor Cover (%) 11 | . . . . . . . . . . . 8 5 . . . . . 1 14 Naked Turns 58 | . . . . . . . . . . . . . . . . . . . 58 Heaviest Build 69 | 13 24 31 44 44 64 66 68 68 53 50 50 31 29 21 30 30 36 48 69 Greatest Support 315 | 40 40 40 63 63 63 63 85 88 88 88 88 39 31 31 39 37 45 54 315 Greatest Overweight (x) 13 | . . . . 1 1 1 7 1 . . 1 1 . . . . . . 13 Average Overweight (x) . | . . . . . . . . . . . . . . . . . . . . Largest Inventory Capacity 20 | 8 15 15 15 15 20 20 20 20 20 20 20 10 10 10 10 10 10 10 10 Average Capacity 15 | 7 9 15 15 15 16 20 20 20 20 20 10 9 10 10 10 10 10 10 8 Most Carried 20 | 6 10 10 15 15 15 16 20 20 20 16 16 10 10 10 10 10 10 10 10 Average Carried 13 | 3 7 9 13 14 14 14 18 19 17 16 9 9 9 10 9 9 9 9 8 Final Capacity 20 | 8 15 15 15 15 20 20 20 20 20 20 10 10 10 10 10 10 10 10 5 Final Carried 19 | 5 9 10 15 15 15 15 19 19 16 16 10 10 10 10 9 10 10 10 3 Class Distribution -------------------- 50% | Mutant 19% | Scavenger-Mutant 13% | Hacker-Sprinter 10% | Hacker-Mutant 5% | Wizard-Sprinter Dominant Class ---------------- Mutant | -10/Materials Mutant | -10/Mines Scavenger-Mutant | -9/Materials Mutant | -9/Mines Mutant | -9/Exiles Mutant | -8/Mines Mutant | -8/Materials Scavenger-Mutant | -8/Storage Hacker-Mutant | -8/Recycling Hacker-Mutant | -8/Scraptown Hacker-Sprinter | -6/Factory Hacker-Sprinter | -6/Extension Hacker-Sprinter | -6/Cetus Hacker-Sprinter | -6/Archives Hacker-Sprinter | -6/Hub_04(d) Wizard-Sprinter | -5/Factory Wizard-Sprinter | -4/Factory Wizard-Sprinter | -3/Research Hacker-Mutant | -3/Armory Resources | -11 -10 -10 -9 -9 -9 -8 -8 -8 -8 -8 -6 -6 -6 -6 -6 -5 -4 -3 -3 ----------- Run | Yrd Mat Min Mat Min Exi Min Mat Sto Rec Scr Fac Ext Cet Arc Hub Fac Fac Res Arm Matter Collected 5549 | 295 150 203 829 180 100 373 660 992 278 . 422 251 101 10 25 110 140 30 400 Remotely . | . . . . . . . . . . . . . . . . . . . . Salvage Created 8507 | 167 587 174 1610 169 . 140 675 1534 832 . 494 434 358 307 101 110 259 230 326 Parts 493 | 9 40 20 118 8 . 16 49 77 23 . 28 20 8 24 5 3 8 10 27 Haulers Intercepted 16 | . 2 . 5 . . . 2 3 . . 1 . . . . 1 2 . . Recyclers Shooed 6 | . 1 . 2 . . . 1 . . . 1 . . . . . . 1 . Parts Field Recycled . | . . . . . . . . . . . . . . . . . . . . Retrieved Matter . | . . . . . . . . . . . . . . . . . . . . Parts Self-Destructed . | . . . . . . . . . . . . . . . . . . . . Prevented . | . . . . . . . . . . . . . . . . . . . . Parts Restored . | . . . . . . . . . . . . . . . . . . . . Kills | -11 -10 -10 -9 -9 -9 -8 -8 -8 -8 -8 -6 -6 -6 -6 -6 -5 -4 -3 -3 ------- Run | Yrd Mat Min Mat Min Exi Min Mat Sto Rec Scr Fac Ext Cet Arc Hub Fac Fac Res Arm Combat Hostiles Destroyed 161 | . 10 11 40 24 . 8 19 29 3 . 3 5 2 . . . . . 7 Melee 5 | . . . . . . . . . . . . 4 . . . . . . 1 Guns 66 | . 10 6 23 . . . . 18 3 . . . . . . . . . 6 Cannons 41 | . . . 14 5 . 4 12 6 . . . . . . . . . . . AOE 47 | . . 5 3 19 . 4 7 5 . . 3 1 . . . . . . . Classes Destroyed 18 | 2 6 . 4 2 . . . . . . . 3 . . . . . . 1 Worker 13 | . 1 . 2 . . . . 3 . . 4 . . . 1 . 1 1 . Builder 6 | . 1 . . . . . . . . . 4 1 . . . . . . . Tunneler 7 | 4 . . 1 1 . . 1 . . . . . . . . . . . . Hauler 16 | . 2 . 5 . . . 2 3 . . 1 . . . . 1 2 . . Recycler 17 | 1 1 . 1 . . 1 1 3 7 . 1 . . . . . . 1 . Mechanic 2 | . . . 1 . . . . 1 . . . . . . . . . . . Operator 17 | . . . 2 . . . . 1 . . 1 . . 9 2 . . 1 1 Watcher 22 | . 3 . 5 . . . 5 1 . . 2 1 1 . 2 . 1 1 . Swarmer 52 | . 3 9 12 . . 5 11 5 . . 3 . . . . . . . 4 Saboteur 1 | . . . . . . . . . . . . . . . . . . . 1 Grunt 46 | . 7 2 18 3 . 3 . 13 . . . . . . . . . . . Duelist 2 | . . . 1 . . . . 1 . . . . . . . . . . . Sentry 33 | . . . 9 . . . 8 10 3 . . 3 . . . . . . . Demolisher 2 | . . . . 2 . . . . . . . . . . . . . . . Programmer 3 | . . . . . . . . . . . . 1 . . . . . . 2 Cetus Guard 2 | . . . . . . . . . . . . . 2 . . . . . . Explorer 1 | . . . . . . . . . . . . 1 . . . . . . . Assembled 19 | . . . . 19 . . . . . . . . . . . . . . . Thug 2 | . . . . 1 . . . . . . . 1 . . . . . . . Guerrilla 3 | . . . . . . . . . . . . 1 2 . . . . . . Best Kill Streak 19 | 3 4 3 8 19 . 3 6 5 2 . 3 2 3 8 1 1 2 2 3 Combat Bots Only 19 | . 3 3 8 19 . 3 4 5 1 . 3 2 2 . . . . . 3 Max Kills in Single Turn 7 | 1 1 2 3 7 . 2 6 2 1 . 2 1 1 1 1 1 1 1 1 Gunslinging 1 | . . . . . . . . 1 . . . . . . . . . . . Exploded 7 | . . 2 3 7 . 2 4 2 . . 2 1 . . . . . . . Melee 1 | . . . . . . . . . . . . 1 . . . . . . 1 Uniques/NPCs Destroyed 1 | . . . . . . . . . . . . . 1 . . . . . . A7 (-6/Cetus) Combat | -11 -10 -10 -9 -9 -9 -8 -8 -8 -8 -8 -6 -6 -6 -6 -6 -5 -4 -3 -3 -------- Run | Yrd Mat Min Mat Min Exi Min Mat Sto Rec Scr Fac Ext Cet Arc Hub Fac Fac Res Arm Hostile Shots Fired 924 | . 41 27 112 32 . 26 56 131 24 . 22 38 14 2 37 1 . 22 339 Missed 290 | . 13 9 30 10 . 8 14 39 6 . 9 14 8 1 26 1 . 16 86 Hits 634 | . 28 18 82 22 . 18 42 92 18 . 13 24 6 1 11 . . 6 253 Melee 5 | . . . 3 . . . . . . . . . . . . . . . 2 Projectile 629 | . 28 18 79 22 . 18 42 92 18 . 13 24 6 1 11 . . 6 251 AOE 8 | . . . . 7 . . . . . . . . . . . . . . 1 Critical Strikes 28 | . 1 . 5 . . 1 5 4 . . . 1 1 . . . . . 10 Part Disruptions 2 | . . . . . . . . . . . . . . . . . . . 2 Damage Taken 10890 | . 540 140 1085 498 . 303 668 1527 273 . 371 164 166 23 150 . . 110 4872 Core 1954 | . 16 39 173 33 . 44 21 77 27 . 43 32 64 . 64 . . 18 1303 Absorbed by Shields 83 | . . . . . . . . . . . . 38 45 . . . . . . Reduced by Siege Mode 210 | . . . . . . . . . . . . . . . . . . . 210 Core Remaining (%) 81 | 100 . 78 . . . 37 . . . 77 . . . . 76 100 100 . . Volleys Fired 561 | 15 64 20 126 21 . 18 48 99 33 . 15 24 7 . . 19 2 4 46 Largest 2 | 2 2 2 2 2 . 2 2 2 2 . 1 1 1 . . 1 1 1 2 Hottest 120 | 60 60 85 98 74 . 74 74 70 46 . 33 48 43 . . 90 90 90 120 Shots Fired 1033 | 30 128 40 248 42 . 36 95 198 66 . 15 24 7 . . 19 2 4 79 Gun 643 | 30 128 36 149 . . . 2 146 66 . 13 . . . . . . . 73 Cannon 345 | . . . 98 34 . 30 89 46 . . . 17 . . . 19 2 4 6 Launcher 45 | . . 4 1 8 . 6 4 6 . . 2 7 7 . . . . . . Special . | . . . . . . . . . . . . . . . . . . . . Kinetic 770 | 15 64 20 155 34 . 30 91 192 66 . 13 17 . . . . . . 73 Thermal 218 | 15 64 16 92 . . . . . . . . . . . . 19 2 4 6 Explosive 40 | . . 4 1 8 . 6 4 6 . . 2 7 2 . . . . . . Electromagnetic 5 | . . . . . . . . . . . . . 5 . . . . . . Robot Hit Streak 62 | 6 14 5 17 6 . 6 6 31 62 . 8 2 . . . . . . 11 Robot Miss Streak 8 | 2 8 4 5 3 . 2 4 3 2 . 2 4 . . . 1 . . 4 Penetration Max 1 | . . . . . . . . . . . . . . . . . . . 1 Secondary Targets 6 | . . . 2 . . . . 2 . . . . . . . . . . 2 Max Gunslinging Chain 1 | . . . 1 . . . . 1 . . . . . . . . . . 1 Shots Hit Robots 722 | 17 78 18 156 23 . 13 51 143 54 . 34 27 15 14 13 2 8 6 50 Core Hits 397 | 8 36 13 72 58 . 13 27 67 15 . 14 13 25 6 5 1 3 3 18 Critical Kills 6 | . 1 . . . . . . . . . . . . . . . . . 5 Critical Parts Destroyed 14 | . . . . . . . . 1 . . . 1 . . . . . . 12 Critical Strikes 48 | . 1 . 6 . . 2 6 3 . . 2 7 1 . 2 1 . . 17 Burn 3 | . . . 3 . . . . . . . . . . . . . . . . Destroy 21 | . 1 . . . . . . 1 . . 1 1 . . . . . . 17 Blast 13 | . . . 3 . . 2 6 2 . . . . . . . . . . . Sever 11 | . . . . . . . . . . . 1 6 1 . 2 1 . . . Melee Attacks 187 | . . . . . . . . 4 1 . 45 30 15 19 17 7 26 17 6 Impact . | . . . . . . . . . . . . . . . . . . . . Slashing 187 | . . . . . . . . 4 1 . 45 30 15 19 17 7 26 17 6 Piercing . | . . . . . . . . . . . . . . . . . . . . Sneak Attacks 62 | . . . . . . . . . 1 . 11 18 13 7 4 1 3 4 . Combat Hostiles 2 | . . . . . . . . . . . . 2 . . . . . . . Follow-up Attacks . | . . . . . . . . . . . . . . . . . . . . Damage Inflicted 20143 | 166 815 448 3007 1712 . 583 1710 3185 902 . 1553 1197 1291 957 667 120 519 514 797 Guns 5822 | 166 815 213 1541 . . . 13 1699 830 . 73 . . . . . . . 472 Cannons 4249 | . . . 1215 523 . 282 1209 727 . . . 76 . . . . . . 217 Explosions 3976 | . . 235 251 1189 . 301 488 759 . . 180 57 516 . . . . . . Melee 6087 | . . . . . . . . . 72 . 1300 1064 775 957 667 120 519 514 99 Ramming 9 | . . . . . . . . . . . . . . . . . . . 9 Kinetic 8010 | 57 337 124 1588 523 . 282 1222 2426 830 . 73 76 . . . . . . 472 Thermal 2061 | 109 478 89 1168 . . . . . . . . . . . . . . . 217 Explosive 3653 | . . 235 251 1189 . 301 488 759 . . 180 57 193 . . . . . . Electromagnetic 323 | . . . . . . . . . . . . . 323 . . . . . . Impact . | . . . . . . . . . . . . . . . . . . . . Slashing 6087 | . . . . . . . . . 72 . 1300 1064 775 957 667 120 519 514 99 Piercing . | . . . . . . . . . . . . . . . . . . . . Highest Corruption 37 | . 1 1 . . . . . . . . 4 . 1 1 13 . . . 37 Average Corruption 4 | . 1 1 . . . . . . . . 2 . 1 1 1 . . . 20 Corruption Purged 7 | . . . . . . . . . . . 4 . . . . . . . 3 Corruption Blocked . | . . . . . . . . . . . . . . . . . . . . Effects 57 | . 6 9 . . . . . . . . 3 . 3 . 1 . . . 35 Message Errors 10 | . . 1 . . . . . . . . 1 . . . . . . . 8 Matter Fused 11 | . 2 2 . . . . . . . . . . 1 . 1 . . . 5 Heat Flow Errors 3 | . 1 2 . . . . . . . . . . . . . . . . . Energy Discharges 11 | . 2 1 . . . . . . . . 2 . . . . . . . 6 Parts Rejected 1 | . . . . . . . . . . . . . . . . . . . 1 Data Loss (minor) 5 | . . 2 . . . . . . . . . . . . . . . . 3 Data Loss (major) 8 | . 1 1 . . . . . . . . . . 2 . . . . . 4 Alerts 1 | . . . . . . . . . . . . . . . . . . . 1 Misdirections 5 | . . . . . . . . . . . . . . . . . . . 5 Weapon Failures 2 | . . . . . . . . . . . . . . . . . . . 2 Overload Shots 21 | . . . . . . . . . . . . . . . . 15 2 4 . Effects 2 | . . . . . . . . . . . . . . . . 1 . 1 . Heat Surge 2 | . . . . . . . . . . . . . . . . 1 . 1 . Overflow Damage 1304 | . . 10 31 41 . 13 45 75 61 . 313 81 10 327 79 . 72 125 21 Projectiles 54 | . . . 31 . . 3 18 . . . . 2 . . . . . . . Explosions 163 | . . 10 . 41 . 10 27 75 . . . . . . . . . . . Melee 1087 | . . . . . . . . . 61 . 313 79 10 327 79 . 72 125 21 Knockbacks 29 | . . . 8 7 . 1 4 8 . . . 1 . . . . . . . Impact . | . . . . . . . . . . . . . . . . . . . . Kinetic 28 | . . . 8 7 . 1 4 7 . . . 1 . . . . . . . Secondary 1 | . . . . . . . . 1 . . . . . . . . . . . Self-Inflicted Damage 293 | . . . 36 . . 6 . 216 . . . . 33 . . . . . 2 Shots 9 | . . . 1 . . 1 . 5 . . . . 2 . . . . . . Rammed 4 | . . . . . . . . . . . . . . . . . . . 4 Targets Rammed 4 | . . . . . . . . . . . . . . . . . . . 4 Kicked . | . . . . . . . . . . . . . . . . . . . . Crushed . | . . . . . . . . . . . . . . . . . . . . Highest Temperature 423 | 40 144 214 339 195 . 129 54 144 . . 246 130 14 17 304 275 59 173 423 Average Temperature 53 | 20 40 67 83 59 . 40 11 33 . . 33 17 5 5 86 106 23 49 128 Received Heat Transfer 1975 | . 204 . 435 54 . 162 108 594 72 . 12 27 . 9 33 . . . 265 Effects 6 | . . . 5 . . . . . . . . . . . . . . . 1 Energy Bleed 1 | . . . 1 . . . . . . . . . . . . . . . . Matter Decay 1 | . . . 1 . . . . . . . . . . . . . . . . Short Circuit 2 | . . . 2 . . . . . . . . . . . . . . . . Damage (minor) 2 | . . . 1 . . . . . . . . . . . . . . . 1 Siege Activations 1 | . . . . . . . . . . . . . . . . . . . 1 Total Turns 4 | . . . . . . . . . . . . . . . . . . . 4 Longest Duration 4 | . . . . . . . . . . . . . . . . . . . 4 Martial Activations . | . . . . . . . . . . . . . . . . . . . . Shielding Activations . | . . . . . . . . . . . . . . . . . . . . Robots Disrupted . | . . . . . . . . . . . . . . . . . . . . Combat Hostiles . | . . . . . . . . . . . . . . . . . . . . Robots Corrupted 2 | . . . . . . . . . . . . . 2 . . . . . . Combat Hostiles 2 | . . . . . . . . . . . . . 2 . . . . . . Parts Fried 2 | . . . . . . . . . . . . . 2 . . . . . . Impact Corruptions . | . . . . . . . . . . . . . . . . . . . . Robots Melted . | . . . . . . . . . . . . . . . . . . . . Combat Hostiles . | . . . . . . . . . . . . . . . . . . . . Parts Melted 2 | . . . 2 . . . . . . . . . . . . . . . . Heat Transferred 4521 | 250 1050 187 2849 . . . . . . . . . . . . . . . 185 Parts Sabotaged 2 | . . . . . . . . . . . . . . . . . . . 2 Parts Stolen . | . . . . . . . . . . . . . . . . . . . . Parts Stripped . | . . . . . . . . . . . . . . . . . . . . Power Chain Reactions . | . . . . . . . . . . . . . . . . . . . . Alert | -11 -10 -10 -9 -9 -9 -8 -8 -8 -8 -8 -6 -6 -6 -6 -6 -5 -4 -3 -3 ------- Run | Yrd Mat Min Mat Min Exi Min Mat Sto Rec Scr Fac Ext Cet Arc Hub Fac Fac Res Arm Maximum Alert Level 2 | . . . 2 . . . 1 1 . . . 1 . . 1 . . . . Low Security (%) 83 | 100 100 100 34 100 . 100 85 60 100 . 100 58 100 100 94 100 100 100 100 Level 1 11 | . . . 26 . . . 14 39 . . . 41 . . 5 . . . . Level 2 5 | . . . 39 . . . . . . . . . . . . . . . . Level 3 . | . . . . . . . . . . . . . . . . . . . . Level 4 . | . . . . . . . . . . . . . . . . . . . . Level 5 . | . . . . . . . . . . . . . . . . . . . . High Security . | . . . . . . . . . . . . . . . . . . . . Max Security . | . . . . . . . . . . . . . . . . . . . . Peak Influence 597 | 5 74 87 597 169 . 149 225 337 141 . 130 258 122 160 276 135 26 159 199 Initial 169 | . . 9 . 169 . . . 61 126 . . 63 28 . 45 135 4 . 79 Average 101 | 1 22 24 301 42 . 27 101 190 46 . 11 158 38 104 111 60 4 71 71 Influence Increases 7242 | 25 371 315 1268 171 . 378 669 987 291 . 377 569 164 250 411 89 123 241 543 Destroy 0b10 Robot/C 3260 | . 200 220 800 100 . 220 380 580 60 . 60 300 80 80 40 . . . 140 Destroy 0b10 Robot/NC 505 | 25 40 . 85 5 . 5 45 60 40 . 65 10 5 45 30 5 20 15 5 Destroy Leader 806 | . 60 40 230 20 . 40 124 188 . . 16 42 . . 16 2 6 2 20 Allied During Kill 374 | . . . . . . 19 . . . . . 120 62 124 49 . . . . Trap Triggered on 0b10 110 | . . . . . . . . . . . 110 . . . . . . . . Successful Hack 321 | . 26 . 29 . . . 10 32 25 . 42 24 . . 2 14 31 78 8 Select Force Hacks 330 | . 30 . . . . . . . 150 . . . . . 150 . . . . Disable Machine 240 | . 15 . 30 . . 30 45 45 15 . 15 15 . . . . . . 30 Destroy Structure 396 | . . 25 19 46 . 49 50 22 1 . 24 28 17 1 4 38 36 26 10 Partial Spotted 120 | . . . . . . . . . . . . 15 . . 30 30 15 30 . Lose Combat Pursuer 780 | . . 30 75 . . 15 15 60 . . 45 15 . . 90 . 15 90 330 Influence Decreases 7104 | 25 345 341 834 605 . 378 522 810 615 . 247 649 214 120 265 355 131 92 556 Entered New Map 961 | . . 17 . 265 . . . 86 198 . . 67 22 . 85 141 6 2 72 Time Decay 5040 | 25 325 324 634 330 . 343 492 604 417 . 237 254 132 90 140 214 125 90 264 Lost Part 529 | . 20 . 50 10 . 9 30 120 . . 10 20 20 . 20 . . . 220 Lost Ally 166 | . . . . . . 26 . . . . . 50 40 30 20 . . . . Purge Threat 408 | . . . 150 . . . . . . . . 258 . . . . . . . Squads Dispatched 61 | . 2 . 8 . . . 3 6 . . 13 1 . . 11 3 7 3 4 Investigation 28 | . 1 . 3 . . . . 1 . . 6 . . . 9 1 4 3 . Extermination 9 | . . . . . . . . . . . 3 . . . . 2 2 . 2 Reinforcement 18 | . 1 . 4 . . . 3 3 . . 1 1 . . 2 . 1 . 2 Assault 4 | . . . 1 . . . . . . . 3 . . . . . . . . Garrison 2 | . . . . . . . . 2 . . . . . . . . . . . Intercept . | . . . . . . . . . . . . . . . . . . . . Searches Triggered . | . . . . . . . . . . . . . . . . . . . . Construction Impeded 3 | . . . 1 . . . 1 . . . . 1 . . . . . . . Haulers Reinforced . | . . . . . . . . . . . . . . . . . . . . Active Scanning Responses . | . . . . . . . . . . . . . . . . . . . . Cargo Convoy Interrupts . | . . . . . . . . . . . . . . . . . . . . Stealth | -11 -10 -10 -9 -9 -9 -8 -8 -8 -8 -8 -6 -6 -6 -6 -6 -5 -4 -3 -3 --------- Run | Yrd Mat Min Mat Min Exi Min Mat Sto Rec Scr Fac Ext Cet Arc Hub Fac Fac Res Arm Distress Signals 20 | . 1 . 5 . . . 1 5 . . . 1 1 . . . 1 2 3 Communications Jammed . | . . . . . . . . . . . . . . . . . . . . Distress Signals . | . . . . . . . . . . . . . . . . . . . . Times Spotted 328 | . 18 12 59 23 . 9 25 40 3 . 13 14 5 9 24 6 4 15 49 Peak Tracking Total 18 | . 4 3 8 18 . 3 4 6 1 . 5 3 5 1 16 4 6 10 16 Tactical Retreats 31 | . . 2 5 1 . 1 1 4 . . 2 1 . . 1 . 1 2 10 Traps | -11 -10 -10 -9 -9 -9 -8 -8 -8 -8 -8 -6 -6 -6 -6 -6 -5 -4 -3 -3 ------- Run | Yrd Mat Min Mat Min Exi Min Mat Sto Rec Scr Fac Ext Cet Arc Hub Fac Fac Res Arm Traps Triggered 12 | . 3 . 2 . . . . 1 . . 2 . . . 2 . . 1 1 Indirectly . | . . . . . . . . . . . . . . . . . . . . Trap Hack Attempts . | . . . . . . . . . . . . . . . . . . . . Triggered . | . . . . . . . . . . . . . . . . . . . . Disarmed 4 | . . . . . . . . . . . . . . . . . 4 . . Reprogrammed 2 | . . . . . . . . . . . . 2 . . . . . . . Reused 11 | . . . . . . . . . . . 11 . . . . . . . . Traps Reconfigurated 43 | . . . . . . . 5 . . . 33 1 . . . . 4 . . Traps Extracted . | . . . . . . . . . . . . . . . . . . . . Installed . | . . . . . . . . . . . . . . . . . . . . Triggered 11 | . . . . . . . . . . . 11 . . . . . . . . Machines | -11 -10 -10 -9 -9 -9 -8 -8 -8 -8 -8 -6 -6 -6 -6 -6 -5 -4 -3 -3 ---------- Run | Yrd Mat Min Mat Min Exi Min Mat Sto Rec Scr Fac Ext Cet Arc Hub Fac Fac Res Arm Machines Disabled 16 | . 1 . 2 . . 2 3 3 1 . 1 1 . . . . . . 2 Max in Single Turn 2 | . 1 . 2 . . 1 1 1 1 . 1 1 . . . . . . 1 Garrison Access 5 | . . . . . . . . 1 . . 2 . . . 1 . . 1 . Network Hub 3 | . . . . . . . . . . . . . . . 3 . . . . Machines Repaired . | . . . . . . . . . . . . . . . . . . . . Machines Dismantled . | . . . . . . . . . . . . . . . . . . . . Machines Sabotaged 3 | . . . . . . . . . . . . . . . 3 . . . . Overloaded Fab Kills . | . . . . . . . . . . . . . . . . . . . . Hacking | -11 -10 -10 -9 -9 -9 -8 -8 -8 -8 -8 -6 -6 -6 -6 -6 -5 -4 -3 -3 --------- Run | Yrd Mat Min Mat Min Exi Min Mat Sto Rec Scr Fac Ext Cet Arc Hub Fac Fac Res Arm Machines Accessed 127 | . 9 . 11 . 2 . 10 9 12 . 23 12 1 . 10 6 14 5 3 Terminals 87 | . 8 . 9 . . . 8 8 6 . 11 12 1 . 9 3 6 3 3 Fabricators 10 | . . . . . . . . . . . 5 . . . . 2 3 . . Repair Stations 1 | . . . . . . . . . . . . . . . . . 1 . . Recycling Units 12 | . 1 . . . . . . . 6 . 1 . . . . 1 3 . . Scanalyzers 8 | . . . 2 . . . 2 . . . 2 . . . . . 1 1 . Garrison Access 7 | . . . . . . . . 1 . . 4 . . . 1 . . 1 . Total Hacks 379 | . 28 . 39 . 2 . 31 21 39 . 66 28 2 . 15 24 55 24 5 Successful 245 | . 19 . 27 . 2 . 18 12 22 . 36 18 1 . 11 20 38 19 2 Failed 133 | . 9 . 12 . . . 13 9 17 . 30 10 1 . 4 4 16 5 3 Catastrophic 13 | . . . 2 . . . 1 . 1 . 7 . . . . . 1 . 1 Database Lockouts 1 | . . . . . . . . . . . . . . . . . 1 . . Manual 229 | . 24 . 22 . 1 . 21 15 31 . 36 12 1 . 12 10 32 11 1 Terminals 263 | . 26 . 30 . . . 23 19 21 . 31 28 2 . 12 10 40 16 5 Fabricators 35 | . . . . . . . . . . . 15 . . . . 13 7 . . Repair Stations 1 | . . . . . . . . . . . . . . . . . 1 . . Recycling Units 26 | . 2 . . . . . . . 18 . 2 . . . . 1 3 . . Scanalyzers 37 | . . . 9 . . . 8 . . . 10 . . . . . 4 6 . Garrison Access 15 | . . . . . . . . 2 . . 8 . . . 3 . . 2 . Terminal Hacks 83 | . 5 . 5 . 2 . 3 3 1 . 7 14 1 . 1 5 23 11 2 Record 5 | . . . 1 . 1 . . . . . . . . . . 1 2 . . Part Schematic 7 | . . . . . . . . . . . 1 . . . . 2 4 . . Robot Analysis 9 | . 4 . 1 . . . . . . . . . . . . . 2 2 . Prototype ID Bank 2 | . . . . . . . . . . . . 1 . . . . 1 . . Open Door 10 | . . . . . . . . 2 . . . 5 1 . . . . . 2 Level Access Points 3 | . . . . . . . . . . . . . . . . 1 1 1 . Branch Access Points 1 | . . . . . . . . . . . . . . . . . . 1 . Terminal Index 4 | . . . . . . . 1 . . . . . . . 1 . 1 1 . Garrison Index 1 | . . . . . . . . . . . . . . . . . 1 . . Alert Level 5 | . . . 1 . . . 1 . . . . 2 . . . . . 1 . Unreport Threat 3 | . . . 1 . . . . . . . . 2 . . . . . . . Locate Traps 14 | . 1 . 1 . . . 1 1 1 . 5 3 . . . . 1 . . Disarm Traps 2 | . . . . . . . . . . . . . . . . . 2 . . Reprogram Traps 1 | . . . . . . . . . . . . 1 . . . . . . . Patrol Status 1 | . . . . . . . . . . . . . . . . . . 1 . Recall Extermination 4 | . . . . . . . . . . . 1 . . . . . 3 . . Hauler Manifests 2 | . . . . . . . . . . . . . . . . 1 1 . . Zone Layout 8 | . . . . . . . . . . . . . . . . . 4 4 . Proto ID Catalog 1 | . . . . . 1 . . . . . . . . . . . . . . Fabricator Hacks 23 | . . . . . . . . . . . 8 . . . . 10 5 . . Network Status 3 | . . . . . . . . . . . 1 . . . . 1 1 . . Load Schematic 13 | . . . . . . . . . . . 5 . . . . 5 3 . . Build 7 | . . . . . . . . . . . 2 . . . . 4 1 . . Repair Station Hacks . | . . . . . . . . . . . . . . . . . . . . Recycling Unit Hacks 10 | . 1 . . . . . . . 5 . 1 . . . . 1 2 . . Retrieve Components 10 | . 1 . . . . . . . 5 . 1 . . . . 1 2 . . Scanalyzer 28 | . . . 9 . . . 5 . . . 4 . . . . . 4 6 . Insert Component 9 | . . . 3 . . . 1 . . . 2 . . . . . . 3 . Analyze 8 | . . . 3 . . . 1 . . . 2 . . . . . . 2 . Retrieve Study 11 | . . . 3 . . . 3 . . . . . . . . . 4 1 . Garrison Access Hacks 4 | . . . . . . . . 1 . . 1 . . . 1 . . 1 . Seal Access 4 | . . . . . . . . 1 . . 1 . . . 1 . . 1 . Unauthorized Hacks 96 | . 13 . 13 . . . 10 8 16 . 14 4 . . 9 4 4 1 . Terminals 79 | . 12 . 13 . . . 10 8 11 . 10 4 . . 9 1 . 1 . Assimilate 4 | . . . . . . . . 1 . . . 1 . . . 1 . 1 . Botnet 31 | . 6 . 7 . . . 5 2 5 . 6 . . . . . . . . Skim 35 | . 6 . 6 . . . 5 5 6 . 4 3 . . . . . . . Sabotage 9 | . . . . . . . . . . . . . . . 9 . . . . Fabricators 9 | . . . . . . . . . . . 4 . . . . 3 2 . . Prioritize 4 | . . . . . . . . . . . 1 . . . . 2 1 . . Recompile 5 | . . . . . . . . . . . 3 . . . . 1 1 . . Repair Stations 1 | . . . . . . . . . . . . . . . . . 1 . . Mechanics 1 | . . . . . . . . . . . . . . . . . 1 . . Recycling Units 7 | . 1 . . . . . . . 5 . . . . . . . 1 . . Mask 1 | . . . . . . . . . . . . . . . . . 1 . . Tunnel 6 | . 1 . . . . . . . 5 . . . . . . . . . . Scanalyzers . | . . . . . . . . . . . . . . . . . . . . Garrison Access . | . . . . . . . . . . . . . . . . . . . . Data Cores Recovered 3 | . . . . . . . . . . . . . . . 2 . . . 1 Used 1 | . . . . . . . . . . . . . . . 1 . . . . Hacking Detections 76 | . 7 . 8 . . . 9 7 8 . 16 8 1 . . 2 5 3 2 Full Trace Events 5 | . . . 1 . . . . 1 1 . 2 . . . . . . . . Feedback Events 1 | . . . . . . . . . . . 1 . . . . . . . . Hackware Fried 1 | . . . . . . . . . . . 1 . . . . . . . . Feedback Blocked . | . . . . . . . . . . . . . . . . . . . . Robot Schematics Acquired . | . . . . . . . . . . . . . . . . . . . . Robots Built . | . . . . . . . . . . . . . . . . . . . . Authchips . | . . . . . . . . . . . . . . . . . . . . Time . | . . . . . . . . . . . . . . . . . . . . Total Robot Build Rating . | . . . . . . . . . . . . . . . . . . . . Part Schematics Acquired 13 | . . . 3 . . . 1 . . . 2 . . . . 2 3 2 . Parts Built 9 | . . . . . . . . . . . 2 . . . . 5 2 . . Authchips 7 | . . . . . . . . . . . 2 . . . . 4 1 . . Time 518 | . . . . . . . . . . . 201 . . . . 259 58 . . Total Part Build Rating 50 | . . . . . . . . . . . 8 . . . . 28 14 . . Part Studies Acquired 9 | . . . 2 . . . 3 . . . . . . . . . 3 1 . Parts Repaired . | . . . . . . . . . . . . . . . . . . . . Time . | . . . . . . . . . . . . . . . . . . . . Parts Recycled . | . . . . . . . . . . . . . . . . . . . . Recycled Matter . | . . . . . . . . . . . . . . . . . . . . Retrieved Matter . | . . . . . . . . . . . . . . . . . . . . Retrieved Components 15 | . 3 . . . . . . . 4 . 3 . . . . . 5 . . Parts Scanalyzed 7 | . . . 3 . . . 1 . . . 1 . . . . . . 2 . Part Schematics Acquired 7 | . . . 3 . . . 1 . . . 1 . . . . . . 2 . Parts Damaged . | . . . . . . . . . . . . . . . . . . . . Bothacking | -11 -10 -10 -9 -9 -9 -8 -8 -8 -8 -8 -6 -6 -6 -6 -6 -5 -4 -3 -3 ------------ Run | Yrd Mat Min Mat Min Exi Min Mat Sto Rec Scr Fac Ext Cet Arc Hub Fac Fac Res Arm Used RIF Installer . | . . . . . . . . . . . . . . . . . . . . Robots Hacked . | . . . . . . . . . . . . . . . . . . . . Non-combat . | . . . . . . . . . . . . . . . . . . . . Combat . | . . . . . . . . . . . . . . . . . . . . Robot Hacks Applied . | . . . . . . . . . . . . . . . . . . . . Relay Couplers Released 1 | . . . . . . . . . . . 1 . . . . . . . . Machine Destruction 1 | . . . . . . . . . . . 1 . . . . . . . . Fabnet Peak Effective % . | . . . . . . . . . . . . . . . . . . . . Robots Rewired 9 | . . . . . . . . . . . . 9 . . . . . . . Allies Hacked . | . . . . . . . . . . . . . . . . . . . . Hacks Repelled . | . . . . . . . . . . . . . . . . . . . . Allies | -11 -10 -10 -9 -9 -9 -8 -8 -8 -8 -8 -6 -6 -6 -6 -6 -5 -4 -3 -3 -------- Run | Yrd Mat Min Mat Min Exi Min Mat Sto Rec Scr Fac Ext Cet Arc Hub Fac Fac Res Arm Total Allies 27 | . . . . 3 . . . . . . . 17 5 . . 1 . 1 . Largest Group 11 | . . . . 3 3 3 . . . . . 9 11 9 7 1 . . . Highest-Rated Group 793 | . . . . 40 40 40 . . . . . 402 793 600 544 26 . . . Highest-Rated Ally 159 | . . . . 16 16 16 . . . . . 159 159 96 96 26 . . . Total Orders 11 | . . . . . . . . . . . . 3 . 4 3 1 . . . STAY 6 | . . . . . . . . . . . . 2 . 1 2 1 . . . FOLLOW 4 | . . . . . . . . . . . . 1 . 2 1 . . . . AID 1 | . . . . . . . . . . . . . . 1 . . . . . Ally Attacks 160 | . . . . . . 27 . . . . . 54 20 49 10 . . . . Total Damage 3751 | . . . . . . 238 . . . . . 1186 419 1651 257 . . . . Kills 26 | . . . . . . 3 . . . . . 14 2 4 3 . . . . Allies Corrupted . | . . . . . . . . . . . . . . . . . . . . Allies Melted . | . . . . . . . . . . . . . . . . . . . . Intel | -11 -10 -10 -9 -9 -9 -8 -8 -8 -8 -8 -6 -6 -6 -6 -6 -5 -4 -3 -3 ------- Run | Yrd Mat Min Mat Min Exi Min Mat Sto Rec Scr Fac Ext Cet Arc Hub Fac Fac Res Arm Active Infowar (turns) 13789 | 9 1676 25 2470 1134 680 1372 2046 386 . . 1034 567 432 195 294 458 454 187 370 Optics 3704 | . . . . . . . . . . . 1034 567 432 195 294 458 454 187 83 Seismic 9798 | 9 1676 25 2470 1134 680 1372 2046 386 . . . . . . . . . . . Cloaking 750 | . . . . . . . . . . . . . . . . 91 285 98 276 Jamming 94 | . . . . . . . . . . . . . . . . . . . 94 Robot Analysis Total 8 | . 4 . 1 . . . . . . . . . . . . . 2 1 . Derelict Logs Recovered 3 | . . 2 . 1 . . . . . . . . . . . . . . . Drone Launches . | . . . . . . . . . . . . . . . . . . . . Drone Recoveries . | . . . . . . . . . . . . . . . . . . . . Exploration | -11 -10 -10 -9 -9 -9 -8 -8 -8 -8 -8 -6 -6 -6 -6 -6 -5 -4 -3 -3 ------------- Run | Yrd Mat Min Mat Min Exi Min Mat Sto Rec Scr Fac Ext Cet Arc Hub Fac Fac Res Arm Turns Passed 19337 | 161 1676 1131 2484 1134 680 1372 2046 1944 1552 821 1052 567 432 195 294 458 454 187 697 Spaces Moved 14571 | 71 790 650 1124 535 319 485 878 747 979 567 2331 914 234 227 709 782 1037 515 677 Core 190 | 10 . . . . . . . . . . . . . . . . . . 180 Treads 7159 | 61 790 650 1124 535 319 485 877 747 979 567 5 . . . . . . . 20 Legs . | . . . . . . . . . . . . . . . . . . . . Wheels . | . . . . . . . . . . . . . . . . . . . . Hover 14 | . . . . . . . 1 . . . . . . . . . . . 13 Flight 7208 | . . . . . . . . . . . 2326 914 234 227 709 782 1037 515 464 Fastest Speed 6 | 50 160 160 160 160 160 160 156 145 145 145 20 6 20 20 6 11 7 7 7 Average Speed 93 | 144 160 160 160 196 210 233 160 168 145 145 20 20 20 20 19 19 17 15 46 Slowest Speed 700 | 160 160 160 160 240 240 240 530 240 145 145 145 100 20 20 23 20 20 17 700 Overloaded Moves 136 | . . . . . . . . . . . . 11 . . 46 3 9 37 30 Propulsion Burnouts . | . . . . . . . . . . . . . . . . . . . . Robots Hopped 14 | . . . . . . . . . . . 1 2 . . 5 5 . 1 . Potential Cave-ins 7 | . . . . . . . . . . . . 7 . . . . . . . Cave-ins Triggered . | . . . . . . . . . . . . . . . . . . . . Exploration Rate (%) 67 | 4 98 98 95 96 71 99 70 86 99 55 64 67 75 97 63 23 32 17 39 Regions Visited 19 Branch Regions 12 Pre-discovered Areas 15 | . 2 1 2 1 1 . . 1 7 . . . . . . . . . . Known Exits Taken 11 | . . 1 . . . 1 1 1 1 1 1 . . . 1 1 1 1 . Unknown Exits Taken 8 | 1 1 . 1 1 1 . . . . . . 1 1 1 . . . . . Scrap Searched 8 | . . 2 . 1 . 1 . . . 4 . . . . . . . . . Spaces Dug 106 | . . . 1 . . 2 4 1 . . 18 34 . . 3 13 18 12 . Terrain Destroyed 491 | . . 33 10 74 . 74 60 52 . . 23 84 21 . 3 20 18 14 5 Melee 51 | . . . . . . . . . . . 18 . . . 3 4 16 10 . Projectile 79 | . . . 10 9 . 4 17 4 . . . 12 . . . 16 2 4 1 AOE 357 | . . 33 . 65 . 70 43 48 . . 5 72 21 . . . . . . Terrain Rammed . | . . . . . . . . . . . . . . . . . . . . Walls Destroyed . | . . . . . . . . . . . . . . . . . . . . Machines Disabled . | . . . . . . . . . . . . . . . . . . . . Actions | -11 -10 -10 -9 -9 -9 -8 -8 -8 -8 -8 -6 -6 -6 -6 -6 -5 -4 -3 -3 --------- Run | Yrd Mat Min Mat Min Exi Min Mat Sto Rec Scr Fac Ext Cet Arc Hub Fac Fac Res Arm Total 18999 | 99 1089 698 1576 577 329 689 1427 1223 1044 566 2816 1225 587 346 835 1047 1271 589 966 Wait 3177 | . 214 22 249 14 1 178 443 330 8 . 351 210 324 100 109 224 179 47 174 Move 14524 | 70 789 649 1123 534 318 484 877 746 978 566 2328 909 233 226 698 771 1036 512 677 Hop 14 | . . . . . . . . . . . 1 2 . . 5 5 . 1 . Pick Up 115 | 6 8 . 20 2 2 2 15 4 6 . 18 7 1 . . 5 7 1 11 Fast Attach 78 | 6 . 1 10 . 2 . 7 14 2 . 5 1 2 . 2 5 2 1 18 Attach 72 | 1 2 . 5 . 1 1 3 4 5 . 20 2 1 . 1 5 4 3 14 Detach 19 | . . . . . . . 1 . . . 7 1 1 . . 2 2 2 3 Swap 89 | 1 5 6 16 4 1 5 13 12 1 . 9 4 1 1 1 2 6 1 . Drop 124 | . 7 . 27 2 4 1 20 10 8 . 17 2 2 . 2 2 7 . 13 Fire 561 | 15 64 20 126 21 . 18 48 99 33 . 15 24 7 . . 19 2 4 46 Melee 187 | . . . . . . . . 4 1 . 45 30 15 19 17 7 26 17 6 Ram 1 | . . . . . . . . . . . . . . . . . . . 1 Kick . | . . . . . . . . . . . . . . . . . . . . Crush 3 | . . . . . . . . . . . . . . . . . . . 3 Escape Stasis . | . . . . . . . . . . . . . . . . . . . . Rewire 34 | . . . . . . . . . 1 . . 33 . . . . . . . Trap . | . . . . . . . . . . . . . . . . . . . . Miscellaneous 1 | . . . . . . . . . 1 . . . . . . . . . . Route ------- -11/Scrapyard -10/Materials (discovered 6 exits: *Mat x3 / [*Min x2] / Sub) -10/Mines (discovered 3 exits: *Mat x2 / *Sub) -9/Materials (discovered 5 exits: *Mat x3 / [*Min x2]) -9/Mines (discovered 3 exits: *Mat x2 / *Exi) -9/Exiles -8/Mines (discovered 2 exits: *Mat x2) -8/Materials (discovered 5 exits: *Fac x3 / *Sto x2) -8/Storage (discovered 2 exits: *Fac / *Rec) -8/Recycling (discovered 2 exits: *Fac / *Scr) -8/Scraptown (discovered 2 exits: *Fac x2) -6/Factory (discovered 7 exits: *Fac x3 / [*Low x2] / *Ext x2) -6/Extension (discovered 2 exits: *Fac / *Cet) -6/Cetus -6/Archives (discovered 3 exits: *Fac / *Hub x2) -6/Hub_04(d) (discovered 3 exits: *Fac x3) -5/Factory (discovered 4 exits: *Fac x4) -4/Factory (discovered 6 exits: *Res x4 / [*Upp x2]) -3/Research (discovered 5 exits: Res x3 / *Arm / Qua) -3/Armory History --------- Turn | Location | Event 7 | -11/Scrapyard | Discovered new exit (range 15) 162 | -11/Scrapyard | Entered Materials 172 | -10/Materials | Discovered new exit (range 16) 307 | -10/Materials | Build established: Mutant 825 | -10/Materials | Discovered new exit (range 15) 942 | -10/Materials | Discovered new exit (range 14) 1251 | -10/Materials | Discovered new exit (range 8) 1400 | -10/Materials | Learned Storage security intel 1419 | -10/Materials | Discovered new exit (range 15) 1431 | -10/Materials | Learned location of 2 exits from Subcaves 1467 | -10/Materials | Learned location of Recycling (-8) 1472 | -10/Materials | Identified exit to Subcaves 1515 | -10/Materials | Learned 4 Subcaves zone layouts 1838 | -10/Materials | Entered Mines 1839 | -10/Mines | Identified exit to Materials 2132 | -10/Mines | Discovered exit to Subcaves (range 10) 2569 | -10/Mines | Learned location of 1 exit from Materials 2969 | -10/Mines | Entered Materials 2969 | -9/Materials | Evolved 2 slots: Propulsion x1, Utility x1 2970 | -9/Materials | Identified exit to Materials 3149 | -9/Materials | Discovered new exit (range 15) 3226 | -9/Materials | Lost 5 parts (1p2n1u1w) 3240 | -9/Materials | Destroyed 8 combat bots 3268 | -9/Materials | Build established: Scavenger-Mutant 3755 | -9/Materials | Discovered new exit (range 16) 4334 | -9/Materials | Discovered exit to Materials (range 11) 5131 | -9/Materials | Learned location of Zion (-7) 5184 | -9/Materials | Learned 4 Recycling zone layouts 5192 | -9/Materials | Learned 2 Storage zone layouts 5211 | -9/Materials | Learned location of Storage (-8) 5316 | -9/Materials | Build established: Mutant 5369 | -9/Materials | First assault squad dispatched 5453 | -9/Materials | Entered Mines 5469 | -9/Mines | Met a Derelict bent on vengeance 5509 | -9/Mines | Discovered exit to Materials (range 6) 5516 | -9/Mines | Received a Rocket Launcher from a helpful Derelict 5564 | -9/Mines | Met a Derelict testing a Signal Generator 5581 | -9/Mines | Found Signal Generator 5927 | -9/Mines | Assembled infested the area 5932 | -9/Mines | Assisted by a Guerilla fighting off Assembled 5966 | -9/Mines | Destroyed 19 combat bots 5988 | -9/Mines | Core integrity fell below 50% 6038 | -9/Mines | Deemed a non-threat by the Exiles lab entrance 6040 | -9/Mines | Discovered new exit (range 5) 6158 | -9/Mines | Assisted by bots powering up and referring to "LRC-V3" 6587 | -9/Mines | Entered Exiles 6587 | -9/Exiles | Accompanied by 3 allies 6647 | -9/Exiles | Met 8R-AWN 6688 | -9/Exiles | Met EX-HEX 6760 | -9/Exiles | Met EX-BIN 6796 | -9/Exiles | Aligned with FarCom system 6799 | -9/Exiles | Given EX-Vault access code 6856 | -9/Exiles | Opened EX-Vault 6892 | -9/Exiles | Found PSU Rigger 6900 | -9/Exiles | Found Trap Reconfigurator 6932 | -9/Exiles | Warned to stay clear of 0b10 Research branches 6977 | -9/Exiles | Met EX-DEC 7240 | -9/Exiles | Discovered new exit (range 10) 7267 | -9/Exiles | Left Exiles lab with Trap Reconfigurator 7267 | -9/Exiles | Entered Mines 7267 | -8/Mines | Accompanied by 3 allies 7732 | -8/Mines | Discovered exit to Materials (range 6) 8266 | -8/Mines | Discovered exit to Materials (range 11) 8639 | -8/Mines | Entered Materials 8639 | -8/Materials | Evolved 2 slots: Propulsion x1, Utility x1 9003 | -8/Materials | Build established: Scavenger-Mutant 9503 | -8/Materials | Build established: Mutant 9639 | -8/Materials | Discovered new exit (range 5) 9783 | -8/Materials | Identified exit to Factory 9783 | -8/Materials | Identified exit to Storage 9858 | -8/Materials | Learned Storage emergency access door positions 9924 | -8/Materials | Learned Storage emergency access door positions 9979 | -8/Materials | Learned Storage non-interactive machine intel 10056 | -8/Materials | Learned 4 Factory zone layouts 10213 | -8/Materials | Learned Storage security intel 10685 | -8/Materials | Entered Storage 10686 | -8/Storage | Identified exit to Recycling 10689 | -8/Storage | Loaded intel: 19 non-interactive machine locations 11184 | -8/Storage | Used back door to open Recycling access 11374 | -8/Storage | Garrison activated, responded to threat 11389 | -8/Storage | Build established: Scavenger-Mutant 12197 | -8/Storage | Learned Factory scanalyzer intel 12247 | -8/Storage | Learned Factory stockpile data 12258 | -8/Storage | Learned location of 2 exits from Factory 12260 | -8/Storage | Learned location of Extension (-6) 12261 | -8/Storage | Learned location of 2 exits from Lower Caves 12349 | -8/Storage | Lost 6 parts (1p1n2u2w) 12589 | -8/Storage | Build established: Mutant 12629 | -8/Storage | Entered Recycling 12630 | -8/Recycling | Identified exit to Factory 12631 | -8/Recycling | Identified exit to Scraptown 13380 | -8/Recycling | Learned Storage stockpile data 13488 | -8/Recycling | Learned location of 1 exit from Lower Caves 13494 | -8/Recycling | Learned 12 Factory zone layouts 13530 | -8/Recycling | Learned location of 1 exit from Recycling 13564 | -8/Recycling | Learned Storage terminal intel 13579 | -8/Recycling | Scanned before Scraplab entrance 13635 | -8/Recycling | Build established: Hacker-Mutant 14165 | -8/Recycling | Entered Scraplab 14181 | -8/Recycling | Entered Scraptown 14371 | -8/Scraptown | Turned away by UFD registrar 14393 | -8/Scraptown | Visited CPS Storage 14418 | -8/Scraptown | Visited Symbiants 14432 | -8/Scraptown | Visited Fellowship of the Rings 14453 | -8/Scraptown | Visited SPCMW 14467 | -8/Scraptown | Visited TADAMA 14489 | -8/Scraptown | Visited Awakened 14772 | -8/Scraptown | Heard Great Nut preacher, LISTEN AND RECITE! 15002 | -8/Scraptown | Entered Factory 15002 | -6/Factory | Evolved 4 slots: Propulsion x2, Utility x2 15003 | -6/Factory | Identified exit to Factory 15004 | -6/Factory | Identified exit to Extension 15007 | -6/Factory | Loaded intel: 4 scanalyzer locations 15105 | -6/Factory | Spotted B-75 Beast 15121 | -6/Factory | Discovered exit to Extension (range 6) 15290 | -6/Factory | Watched by a mysterious "MATRIX" hacker. 15312 | -6/Factory | Hacking Suite fried by hacking feedback 15352 | -6/Factory | Build established: Hacker-Sprinter 15547 | -6/Factory | Fabricated Cld. VTOL Module (x1) 15618 | -6/Factory | Fabricated Cld. VTOL Module (x1) 15649 | -6/Factory | Discovered new exit (range 6) 15717 | -6/Factory | Discovered new exit (range 5) 15719 | -6/Factory | Found Prototype Launcher 16054 | -6/Factory | Entered Extension 16173 | -6/Extension | Rescued a captive Derelict 16173 | -6/Extension | Rescued a captive Derelict 16189 | -6/Extension | Rescued a captive Derelict 16202 | -6/Extension | Lost 4 allies 16463 | -6/Extension | Rescued a captive Derelict 16464 | -6/Extension | Rescued a captive Derelict 16469 | -6/Extension | Rescued A7 16479 | -6/Extension | Rescued a captive Derelict 16480 | -6/Extension | Rescued a captive Derelict 16545 | -6/Extension | Discovered exit to Factory (range 10) 16545 | -6/Extension | Discovered new exit (range 6) 16621 | -6/Extension | Entered Cetus 16621 | -6/Cetus | Accompanied by 9 allies (A7) 16623 | -6/Cetus | Spotted Cetus Guard 16623 | -6/Cetus | Spotted Cetus Guard 16624 | -6/Cetus | Spotted Cetus Guard 16626 | -6/Cetus | Acquired a Cetus Manufacturing Module code from A7 16631 | -6/Cetus | Spotted Cetus Guard 16634 | -6/Cetus | Destroyed Cetus Guard 16642 | -6/Cetus | Destroyed Cetus Guard 16651 | -6/Cetus | Allies destroyed Cetus Guard 16656 | -6/Cetus | Allies destroyed Cetus Guard 16676 | -6/Cetus | Started Cetus Manufacturing Module 16692 | -6/Cetus | Escorted A7 to Cetus Mainframe 16701 | -6/Cetus | Manufactured an Enhanced Grunt 16726 | -6/Cetus | Manufactured an Enhanced Grunt 16751 | -6/Cetus | Manufactured an Enhanced Grunt 16776 | -6/Cetus | Manufactured an Enhanced Grunt 16801 | -6/Cetus | Manufactured an Enhanced Grunt 16982 | -6/Cetus | Murdered A7 16985 | -6/Cetus | Extracted ID and sensor layout for unrecognized location from A7's data core 16998 | -6/Cetus | Discovered new exit (range 20) 17053 | -6/Cetus | Entered Archives 17053 | -6/Archives | Accompanied by 9 allies 17080 | -6/Archives | Unable to access archive contents 17134 | -6/Archives | Discovered new exit (range 20) 17135 | -6/Archives | Discovered new exit (range 20) 17149 | -6/Archives | Discovered exit to Factory (range 20) 17248 | -6/Archives | Entered Hub_04(d) 17248 | -6/Hub_04(d) | Accompanied by 7 allies 17251 | -6/Hub_04(d) | Discovered exit to Factory (range 16) 17405 | -6/Hub_04(d) | Network Hub disabled 17422 | -6/Hub_04(d) | Discovered exit to Factory (range 14) 17494 | -6/Hub_04(d) | Network Hub disabled 17494 | -6/Hub_04(d) | Spotted Lightning 17494 | -6/Hub_04(d) | Spotted Lightning 17494 | -6/Hub_04(d) | Spotted Lightning 17526 | -6/Hub_04(d) | Discovered exit to Factory (range 16) 17527 | -6/Hub_04(d) | Network Hub disabled 17542 | -6/Hub_04(d) | System corruption reached 10% 17542 | -6/Hub_04(d) | Entered Factory 17542 | -5/Factory | Evolved 2 slots: Utility x2 17620 | -5/Factory | Fabricated Adv. Hacking Suite (x1) 17676 | -5/Factory | Fabricated Adv. Hacking Suite (x1) 17730 | -5/Factory | Fabricated Adv. Hacking Suite (x1) 17759 | -5/Factory | Spotted B-75 Beast 17797 | -5/Factory | Identified exit to Factory 17904 | -5/Factory | Fabricated Power Sword? 17939 | -5/Factory | Build established: Wizard-Sprinter 18000 | -5/Factory | Entered another Factory area 18000 | -4/Factory | Evolved 2 slots: Propulsion x1, Utility x1 18029 | -4/Factory | Discovered new exit (range 22) 18114 | -4/Factory | Targeted by mysterious "MATRIX" hacker. 18143 | -4/Factory | Fabricated Imp. Cloaking Device (x2) 18153 | -4/Factory | Identified exit to Research 18244 | -4/Factory | Discovered new exit (range 12) 18446 | -4/Factory | Central database locked down 18454 | -4/Factory | Entered Research 18454 | -3/Research | Evolved 2 slots: Power x1, Propulsion x1 18460 | -3/Research | Identified exit to Armory 18460 | -3/Research | Identified exit to Quarantine 18460 | -3/Research | Identified exit to Research 18475 | -3/Research | Allied Derelicts emerged from ambush trap array 18554 | -3/Research | Spotted B-86 Titan 18607 | -3/Research | Spotted B-86 Titan 18641 | -3/Research | Entered Armory 18642 | -3/Armory | Met VL-GR5, who suggested a friendly competition 18725 | -3/Armory | System corruption reached 10% 18755 | -3/Armory | Lost 3 parts (1n2u) 18980 | -3/Armory | Lost 3 parts (1n2u) 19060 | -3/Armory | System corruption reached 30% 19078 | -3/Armory | Lost 10 parts (2p5n1u2w) 19190 | -3/Armory | Released all parts (8) 19196 | -3/Armory | Core integrity fell below 50% 19220 | -3/Armory | Lost 5 parts (2n2u1w) 19282 | -3/Armory | Released all parts (7) 19286 | -3/Armory | Core integrity fell below 20% 19338 | -3/Armory | Destroyed by D-63 Destroyer with Heavy Rocket Launcher Last Messages --------------- 19282_ Released Adv. Heavy Siege Treads. 19282_ Released Biometal Heavy Treads. 19282_ Released Quantum Reactor+. 19282_ Released Enh. Nova Cannon. 19283_ Penetrated by Slug. 19287_ Slug penetrates H-77 Assassin. 19287_ H-77 Assassin suffers critical hit (Destroy). 19287_ H-77 Assassin destroyed. 19292_ 7T>/NCANITKXXA/,I AVXXOS 19303_ W-44 Eye sends out distress signal. 19305_ ALERT: Potential suspicious activity detected, Programmers report to Armory Zone 7E. 19313_ ALERT: Suspicious intruders detected, dispatching Cutter reinforcements to area. 19313_ X-77 Beamer springs to life. 19324_ System corrupted: Substantial component data lost. 19329_ Connecting with Door Terminal... >>Open(Door) Sealed Heavy Doors opened. 19338_ D-63 Destroyer springs to life. Map ----- +----------------------------------------------------+ | ??????????????????????????????? # #??????????? | | ??????????????????????????????? # #??????????? | | ???????????????????????????????? # #??????????? | | ???????????????????????????????? # #??????????? | | ?????????????????????????########+## #??????????? | | ?????????????????????????# #??????????? | | ?????????????#######?????# ^ #??????????? | | ?????????????#!!! # ?????# """ #??????????? | | ?????????????#!!! ?????# ""F"" #??????????? | | ?????????????# ###### "" "" #??????????? | | ???????????????!! ????????? | | ??????????????????#T l Y ???????? | | ??????????????????### ######### ######## ???????? | | ????????????????????# #???????# #???????? ??????? | | ????????????????????# #???????b ???????? ?????? | | ????????????#########+####???l? ????????#????? | | ????????????# #??b?? #????????????? | | ????????????# #????? b####????????????? | | ????????????# #????? #???????????????? | | ????????????# #?????? #???????????????? | | ????????????# +?????? ????????????????? | | ????????????# """" #?????? ????????????????? | | ????????????# dd #???????????????????????? | | ????????????# dd #???????????????????????? | | ????????????# """" ###### """?????????????? | | ????????????# @ ????????? | | ????????????# ###### ????????? | | ????????????# #???????????????????????? | | ????????????##############???????????????????????? | | ?????????????????????????????????????????????????? | | ?????????????????????????????????????????????????? | | ?????????????????????????????????????????????????? | | ?????????????????????????????????????????????????? | | ?????????????????????????????????????????????????? | | ?????????????????????????????????????????????????? | | ?????????????????????????????????????????????????? | | ?????????????????????????????????????????????????? | | ?????????????????????????????????????????????????? | | ?????????????????????????????????????????????????? | | ?????????????????????????????????????????????????? | | ?????????????????????????????????????????????????? | | ?????????????????????????????????????????????????? | | ?????????????????????????????????????????????????? | | ?????????????????????????????????????????????????? | | ?????????????????????????????????????????????????? | | ?????????????????????????????????????????????????? | | ?????????????????????????????????????????????????? | | ?????????????????????????????????????????????????? | | ?????????????????????????????????????????????????? | | ?????????????????????????????????????????????????? | +----------------------------------------------------+ Best States ------------- Heat Dissipation 77 Coolant Potential 50 Energy Generation 44 Energy Capacity 420 Matter Stores 300 Matter Capacity 300 Sight Range 22 Terrain Scan Density 10 Jamming Range 16 Cloak Strength 3 Armor Coverage 525 Evasion (%) 67 Recoil Reduction 8 Offensive Hacking 68 Defensive Hacking 22 Authchip Count 3 Item Schematics ----------------- VTOL Module | -9/Materials | Scanalyzed Hacking Suite | -9/Materials | Scanalyzed Katana | -9/Materials | Scanalyzed Cesium-ion Thruster | -8/Materials | Scanalyzed Cld. VTOL Module | -6/Factory | Scanalyzed Adv. Hacking Suite | -6/Factory | Hacked Imp. Cloaking Device | -5/Factory | Hacked Power Sword | -5/Factory | Hacked Transmission Jammer | -4/Factory | Hacked Adv. ECM Suite | -4/Factory | Hacked Adv. Recalibrator | -4/Factory | Hacked Jamming Amplifier | -3/Research | Scanalyzed Graphene Brace | -3/Research | Scanalyzed Robot Schematics ------------------ None Fabricated ------------ Cld. VTOL Module | x1 | -6/Factory | Authchip Cld. VTOL Module | x1 | -6/Factory | Authchip Adv. Hacking Suite | x1 | -5/Factory | Authchip Adv. Hacking Suite | x1 | -5/Factory | Authchip Adv. Hacking Suite | x1 | -5/Factory | Authchip Power Sword | x2 | -5/Factory | Authchip Imp. Cloaking Device | x2 | -4/Factory | Authchip Repaired ---------- Nothing Studied --------- VTOL Module | -9/Materials | Hacked Flight Unit | -9/Materials | Hacked Cesium-ion Thruster | -8/Materials | Hacked Katana | -8/Materials | Hacked Rocket Launcher | -8/Materials | Hacked Impulse Thruster | -4/Factory | Hacked Lgt. Antimatter Reactor | -4/Factory | Hacked Power Sword | -4/Factory | Hacked Quantum Reactor | -3/Research | Hacked Alien Tech Used ----------------- None Achievements -------------- Exterminator No Room For Error Challenges ------------ None Game ------ Seed TargetNanofilamentsAirjet Manual? 0 Play Time 02:31:06 Cumulative 320.5 hours Start 2026.03.03 @ 03:07:39 End 2026.03.03 @ 05:43:43 Sessions 1 Manual Loads 0 Difficulty Rogue Special Mode None Game No. 255 Rogue 255 Adventurer 0 Explorer 0 Win Type - Total 18 Types 9/0/7/2/0/0/0/0/0/0 Lore% 85 Gallery% 75 Achievement% 62 Wizard Run 0 Options --------- Layout 1 ASCII 0 Keyboard 0 Movement Numpad Keybinds 0 Fullscreen 1 Font 32/SmallcapsGlow Map View 77x35 Zoom Use 0% Tactical HUD 1 Map Filters NONE Filters NONE Steam 1 RUN: ceafd820-7f43-4cc4-b113-a0397e841778